Cogmind - Beta 13 @@@ ROGUE MODE // 2024.04.30 @ 20:49:10 Player: Cheeriohz Result: Destroyed by G-50 Soldier with Heavy Laser Performance ------------- Evolutions (4) 2000 Regions Visited (16) 3200 Robots Destroyed (103) 515 Value Destroyed (3910) 3910 Prototype IDs (43) 860 Alien Tech Used (0) 0 Bonus (1768) 1768 TOTAL SCORE: 12253 Bonus ------- Follower Combat Kills 640 Aligned with FarCom 300 Met Data Miner 300 Met Imprinter 300 Was Imprinted 300 Friendly Fire -72 Cogmind --------- Core Integrity 0/850 Matter 280/300 Energy 68/100 System Corruption 17% Temperature Cool (9) Movement Core (50) Location -5/Proximity Caves Parts ------- > --- POWER (2) -------- (None) > --- PROPULSION (4) --- (None) > --- UTILITY (6) ------ (None) > --- WEAPON (3) ------- (None) > --- INVENTORY (5) ---- Micro Nuclear Core Hardened Light Armor Plating Improved Medium Armor Plating Improved Shield Generator Makeshift Axe Peak State ------------ > --- POWER ------------ Enhanced Nuclear Core Enhanced Nuclear Core > --- PROPULSION ------- Carbon-fiber Leg Improved Titanium Leg Improved Titanium Leg Improved Titanium Leg > --- UTILITY ---------- Advanced Heat Sink Advanced Heat Sink Large Storage Unit Improved Particle Charger Zionite Weapon Casing Improved Shield Generator > --- WEAPON ----------- Heavy Laser Plasma Rifle Wave Gun > --- INVENTORY -------- Micro Nuclear Core Carbon-fiber Leg Structural Scanner Improved Sensor Array Advanced Signal Interpreter Transmission Jammer Hardened Medium Armor Plating Makeshift Light Armor Plating Improved Shield Generator Long-range Tractor Beam Plasma Rifle Phase Cannon Precision Grenade Launcher Precision Rocket Launcher Makeshift Axe [Rating: 71] Favorites ----------- Power Enhanced Nuclear Core Engine Improved Deuterium Engine Power Core Enhanced Nuclear Core Propulsion Improved Titanium Leg Leg Improved Titanium Leg Hover Unit Aerolev Unit Utility Large Storage Unit Device Structural Scanner Storage Large Storage Unit Processor Advanced Signal Interpreter Hackware Hacking Suite Protection Hardened Light Armor Plating Weapon Precision Beam Rifle Energy Gun Precision Beam Rifle Energy Cannon Guided Plasma Cannon Ballistic Gun Assault Rifle Ballistic Cannon Light Cannon Launcher Precision Rocket Launcher Slashing Weapon Makeshift Axe Piercing Weapon Spear Build | -11 -10 -10 -10 -9 -8 -8 -7 -7 -7 -7 -6 -6 -6 -6 -6 -5 ------- Run | Yrd Mat Min Exi Min Mat Sto Fac Low Low Zio Pro Fac Low Low Dat Pro Slots Evolved 8 | . . . . . 4 . 2 . . . . 2 . . . . Power 1 | . . . . . . . . . . . . 1 . . . . Propulsion 2 | . . . . . 2 . . . . . . . . . . . Utility 4 | . . . . . 2 . 1 . . . . 1 . . . . Weapon 1 | . . . . . . . 1 . . . . . . . . . Parts Attached 151 | 1 13 3 1 3 15 23 15 9 2 8 11 11 17 12 . 7 Power 10 | . 4 . . 2 1 . 2 . . . . 1 . . . . Engine 5 | . 3 . . 1 1 . . . . . . . . . . . Core 5 | . 1 . . 1 . . 2 . . . . 1 . . . . Reactor . | . . . . . . . . . . . . . . . . . Propulsion 21 | . 3 . . . 7 6 . 1 . . 1 . 2 1 . . Treads . | . . . . . . . . . . . . . . . . . Leg 20 | . 3 . . . 7 5 . 1 . . 1 . 2 1 . . Wheel . | . . . . . . . . . . . . . . . . . Hover 1 | . . . . . . 1 . . . . . . . . . . Flight . | . . . . . . . . . . . . . . . . . Utility 71 | 1 4 . . 1 4 7 7 3 1 6 8 8 11 7 . 3 Device 52 | 1 . . . . 4 3 5 3 . 5 8 7 9 6 . 1 Storage 2 | . 2 . . . . . . . . . . . . . . . Processor 1 | . . . . . . . . . . . . . 1 . . . Hackware 2 | . . . . . . . 2 . . . . . . . . . Protection 14 | . 2 . . 1 . 4 . . 1 1 . 1 1 1 . 2 Artifact . | . . . . . . . . . . . . . . . . . Weapon 49 | . 2 3 1 . 3 10 6 5 1 2 2 2 4 4 . 4 Energy Gun 20 | . . . . . 1 4 2 2 1 2 2 2 2 2 . . Energy Cannon 8 | . . . 1 . . 2 1 1 . . . . 1 2 . . Ballistic Gun 4 | . 2 1 . . 1 . . . . . . . . . . . Ballistic Cannon 1 | . . 1 . . . . . . . . . . . . . . Launcher 11 | . . 1 . . 1 3 1 1 . . . . 1 . . 3 Special Weapon . | . . . . . . . . . . . . . . . . . Impact Weapon . | . . . . . . . . . . . . . . . . . Slashing Weapon 3 | . . . . . . 1 1 . . . . . . . . 1 Piercing Weapon 2 | . . . . . . . 1 1 . . . . . . . . Special Melee Weapon . | . . . . . . . . . . . . . . . . . Unidentified Prototypes 8 | . . . . . 2 2 3 . . . . 1 . . . . Parts Lost 21 | . 1 . . . . . . . . . . . 3 5 . 12 Power 3 | . 1 . . . . . . . . . . . . . . 2 Propulsion 5 | . . . . . . . . . . . . . . 1 . 4 Utility 10 | . . . . . . . . . . . . . 3 3 . 4 Weapon 3 | . . . . . . . . . . . . . . 1 . 2 Highest Loss Streak 9 | . 1 . . . . . . . . . . . 3 3 . 9 To Critical Strikes . | . . . . . . . . . . . . . . . . . Average Slot Usage (%) 97 | . 100 100 100 100 94 98 100 100 99 100 100 99 98 96 73 67 Engine 1 | . 4 . . . 1 9 5 . . . . . . . . . Core 9 | . 9 14 14 13 7 . 1 7 7 7 7 12 13 13 13 6 Leg 28 | . 28 28 28 28 30 35 30 30 30 30 30 26 26 25 26 19 Device 12 | . 5 . . . 18 17 9 15 15 17 23 26 19 18 13 12 Storage 9 | . 14 14 14 14 9 9 7 7 7 7 7 6 6 6 6 6 Hackware 1 | . . . . . . . 12 7 7 5 . . . . . . Protection 9 | . 8 14 14 14 9 8 7 7 6 6 7 6 6 9 13 14 Energy Gun 10 | . . . . . 2 12 15 16 19 23 23 20 19 17 . . Energy Cannon 2 | . . . 6 14 9 4 . . . . . . . . . . Ballistic Gun 7 | . 28 23 21 14 5 . . . . . . . . . . . Naked Turns 4 | . . . . . . . . . . . . . . . . 4 Heaviest Build 79 | 12 31 33 40 42 49 50 57 56 60 65 65 79 60 61 47 55 Greatest Support 80 | 20 20 20 20 20 80 80 80 80 75 75 75 75 75 70 50 50 Greatest Overweight (x) 7 | . 1 1 1 2 2 . . . . . . 1 . 1 . 7 Average Overweight (x) . | . . 1 1 1 . . . . . . . . . . . 1 Largest Inventory Capacity 15 | 8 15 15 15 15 15 15 15 15 15 15 15 15 15 15 15 15 Average Capacity 14 | 8 11 15 15 15 15 15 15 15 15 15 15 15 15 15 15 14 Most Carried 15 | 7 14 15 15 15 15 15 15 15 15 15 15 15 15 14 11 14 Average Carried 13 | 6 10 14 14 14 14 14 14 14 13 14 14 14 14 11 11 10 Final Capacity 15 | 8 15 15 15 15 15 15 15 15 15 15 15 15 15 15 15 5 Final Carried 15 | 7 14 15 15 15 14 15 15 15 13 15 15 15 14 10 11 5 Class Distribution -------------------- 52% | Mutant 23% | Tank 9% | Scavenger-Tank 6% | Scavenger-Mutant 3% | Scavenger-Skirmisher Dominant Class ---------------- Mutant | -10/Materials Mutant | -10/Mines Mutant | -10/Exiles Mutant | -9/Mines Scavenger-Mutant | -8/Materials Mutant | -8/Storage Hacker-Mutant | -7/Factory Mutant | -7/Lower Caves Tank | -7/Lower Caves Tank | -7/Zion Tank | -6/Proximity Caves Scavenger-Tank | -6/Factory Scavenger-Tank | -6/Lower Caves Scavenger-Skirmisher | -6/Lower Caves Mutant | -6/Data Miner Mutant | -5/Proximity Caves Resources | -11 -10 -10 -10 -9 -8 -8 -7 -7 -7 -7 -6 -6 -6 -6 -6 -5 ----------- Run | Yrd Mat Min Exi Min Mat Sto Fac Low Low Zio Pro Fac Low Low Dat Pro Matter Collected 2901 | 238 514 47 . 189 138 245 189 113 41 53 154 95 194 135 . 556 Remotely 345 | . . . . . . . . . . . . . . . . 345 Salvage Created 4294 | 86 662 24 . . 403 687 200 144 67 . 328 567 297 240 . 589 Parts 167 | 7 38 6 . . 15 40 2 5 2 . 9 12 13 3 . 15 Haulers Intercepted 6 | . 2 . . . . 2 1 . . . . 1 . . . . Recyclers Shooed 1 | . . . . . 1 . . . . . . . . . . . Parts Field Recycled . | . . . . . . . . . . . . . . . . . Retrieved Matter . | . . . . . . . . . . . . . . . . . Parts Self-Destructed 45 | . . . . . . . . 4 4 . 19 . 9 1 . 8 Prevented 2 | . . . . . . . . . . . 1 . . . . 1 Kills | -11 -10 -10 -10 -9 -8 -8 -7 -7 -7 -7 -6 -6 -6 -6 -6 -5 ------- Run | Yrd Mat Min Exi Min Mat Sto Fac Low Low Zio Pro Fac Low Low Dat Pro Combat Hostiles Destroyed 87 | . 12 3 . . 6 11 3 3 . . 5 9 6 4 . 25 Guns 38 | . 12 1 . . . 2 2 1 . . 3 9 5 3 . . Cannons 10 | . . . . . 6 4 . . . . . . . . . . AOE 33 | . . 2 . . . 4 . 2 . . . . . . . 25 Classes Destroyed 14 | 2 4 1 . . 2 2 . . . . 2 . 1 . . . Worker 1 | . . . . . . 1 . . . . . . . . . . Tunneler 2 | 1 . 1 . . . . . . . . . . . . . . Hauler 6 | . 2 . . . . 2 1 . . . . 1 . . . . Recycler 4 | 1 . . . . 1 2 . . . . . . . . . . Operator 2 | . 1 . . . . 1 . . . . . . . . . . Watcher 1 | . 1 . . . . . . . . . . . . . . . Swarmer 17 | . . 3 . . . 3 . . . . . 1 . . . 10 Grunt 44 | . 12 . . . 4 2 2 3 . . 2 6 4 2 . 7 Brawler 5 | . . . . . 1 . . . . . . . . 1 . 3 Duelist 4 | . . . . . . . . . . . . . 2 . . 2 Protector 1 | . . . . . . . . . . . 1 . . . . . Sentry 9 | . . . . . 1 5 1 . . . 1 . . . . 1 Hunter 3 | . . . . . . 1 . . . . . . . . . 2 Programmer 4 | . . . . . . . . . . . 1 2 . 1 . . Best Kill Streak 9 | 2 4 2 . . 4 4 1 3 . . 2 3 2 1 . 9 Combat Bots Only 9 | . 4 2 . . 3 3 1 3 . . 2 3 2 1 . 9 Max Kills in Single Turn 4 | 1 2 2 . . 1 4 1 2 . . 1 1 1 1 . 3 Gunslinging 1 | . 1 . . . . . . . . . . . . . . . Exploded 3 | . . 2 . . . 3 . 2 . . . . . . . 3 Melee . | . . . . . . . . . . . . . . . . . Uniques/NPCs Destroyed . | . . . . . . . . . . . . . . . . . Combat | -11 -10 -10 -10 -9 -8 -8 -7 -7 -7 -7 -6 -6 -6 -6 -6 -5 -------- Run | Yrd Mat Min Exi Min Mat Sto Fac Low Low Zio Pro Fac Low Low Dat Pro Hostile Shots Fired 448 | . 64 20 . 1 2 45 69 31 3 . 8 31 45 29 . 100 Missed 143 | . 14 4 . . 1 16 23 15 . . 1 11 15 10 . 33 Damage Taken 5261 | . 721 144 . 22 17 366 386 69 6 . 126 522 631 627 . 1624 Core 1094 | . 128 . . . . 15 65 26 . . . 45 105 225 . 485 Absorbed by Shields 275 | . . . . . . . 8 26 2 . 46 168 . 25 . . Redirected to Shielding 15 | . . . . . . . . . . . . 15 . . . . Ignored by Resistances 39 | . . . . . . . . . . . 18 21 . . . . Regen/Repaired (Parts) 638 | . . . . . . 100 . . . 538 . . . . . . Core Remaining (%) 83 | 100 . . . 48 . 97 . . . . 87 . . . . . Volleys Fired 286 | 7 67 9 . . 13 48 16 5 4 . 14 21 22 33 . 27 Largest 3 | 2 2 2 . . 1 2 2 3 3 . 3 3 3 3 . 1 Hottest 229 | 40 40 55 . . 120 136 124 178 178 . 217 219 225 229 . 43 Shots Fired 544 | 14 134 16 . 6 15 59 32 10 11 . 42 63 53 62 . 27 Gun 449 | 14 134 12 . 6 6 28 32 8 11 . 42 63 47 46 . . Cannon 59 | . . 1 . . 9 29 . 1 . . . . 3 16 . . Launcher 36 | . . 3 . . . 2 . 1 . . . . 3 . . 27 Special . | . . . . . . . . . . . . . . . . . Kinetic 171 | 14 134 13 . 6 4 . . . . . . . . . . . Thermal 337 | . . . . . 11 57 32 9 11 . 42 63 50 62 . . Explosive 36 | . . 3 . . . 2 . 1 . . . . 3 . . 27 Electromagnetic . | . . . . . . . . . . . . . . . . . Robot Hit Streak 37 | 3 9 3 . 1 7 17 37 5 11 . 11 15 9 8 . 15 Robot Miss Streak 4 | 4 4 2 . 1 2 1 1 1 1 . 2 2 3 3 . 1 Penetration Max . | . . . . . . . . . . . . . . . . . Secondary Targets 3 | . 1 . . . . . . . . . . 1 1 . . . Max Gunslinging Chain 1 | . 1 . . . . . . . . . . 1 1 . . . Shots Hit Robots 344 | 7 90 6 . 1 8 35 30 5 7 . 31 44 30 28 . 22 Core Hits 204 | 3 40 5 . 1 7 22 7 5 3 . 13 19 14 11 . 54 Critical Kills . | . . . . . . . . . . . . . . . . . Critical Parts Destroyed 2 | . 1 . . . 1 . . . . . . . . . . . Critical Strikes 17 | . 1 . . . 1 3 . . 2 . 2 1 3 3 . 1 Burn 14 | . . . . . . 3 . . 2 . 2 1 3 3 . . Destroy 2 | . 1 . . . 1 . . . . . . . . . . . Sever 1 | . . . . . . . . . . . . . . . . 1 Melee Attacks 22 | . . . . . . . 9 7 2 . . . . . . 4 Impact . | . . . . . . . . . . . . . . . . . Slashing 6 | . . . . . . . 2 . . . . . . . . 4 Piercing 16 | . . . . . . . 7 7 2 . . . . . . . Sneak Attacks . | . . . . . . . . . . . . . . . . . Combat Hostiles . | . . . . . . . . . . . . . . . . . Follow-up Attacks . | . . . . . . . . . . . . . . . . . Damage Inflicted 11299 | 80 907 201 . 41 375 1644 515 245 121 . 637 1176 944 620 . 3793 Guns 5438 | 80 905 70 . 41 50 413 515 87 121 . 637 1160 739 620 . . Cannons 1170 | . . . . . 325 845 . . . . . . . . . . Explosions 4560 | . . 131 . . . 386 . 158 . . . . 205 . . 3680 Melee 113 | . . . . . . . . . . . . . . . . 113 Ramming 18 | . 2 . . . . . . . . . . 16 . . . . Kinetic 1128 | 80 905 70 . 41 32 . . . . . . . . . . . Thermal 5480 | . . . . . 343 1258 515 87 121 . 637 1160 739 620 . . Explosive 4560 | . . 131 . . . 386 . 158 . . . . 205 . . 3680 Electromagnetic . | . . . . . . . . . . . . . . . . . Impact . | . . . . . . . . . . . . . . . . . Slashing 113 | . . . . . . . . . . . . . . . . 113 Piercing . | . . . . . . . . . . . . . . . . . Highest Corruption 17 | . 3 3 3 3 2 . 1 1 1 1 . . . 11 11 17 Average Corruption 3 | . 2 3 3 3 1 . 1 1 1 1 . . . 10 11 11 Corruption Purged 2 | . . . . . 2 . . . . . . . . . . . Corruption Blocked . | . . . . . . . . . . . . . . . . . Effects 128 | . 26 11 8 29 8 . . 2 9 3 . . . 12 3 17 Message Errors 25 | . 3 2 2 8 3 . . 1 1 . . . . 1 . 4 Matter Fused 32 | . 8 3 3 6 1 . . . 3 2 . . . 1 1 4 Heat Flow Errors 19 | . 7 4 . 3 . . . 1 . 1 . . . 1 . 2 Energy Discharges 15 | . 3 . 1 2 . . . . 1 . . . . 3 1 4 Parts Fused 2 | . . . . . . . . . . . . . . 2 . . Data Loss (minor) 16 | . 3 1 2 2 1 . . . 3 . . . . 1 1 2 Data Loss (major) 4 | . 1 . . 1 1 . . . . . . . . 1 . . Misfires 10 | . . 1 . 6 2 . . . 1 . . . . . . . Alerts 4 | . 1 . . 1 . . . . . . . . . 1 . 1 Weapon Failures 1 | . . . . . . . . . . . . . . 1 . . Overload Shots . | . . . . . . . . . . . . . . . . . Overflow Damage 134 | . . 1 . . . 24 . . . . . . . . . 109 Projectiles 17 | . . . . . . 17 . . . . . . . . . . Explosions 117 | . . 1 . . . 7 . . . . . . . . . 109 Melee . | . . . . . . . . . . . . . . . . . Knockbacks . | . . . . . . . . . . . . . . . . . Impact . | . . . . . . . . . . . . . . . . . Kinetic . | . . . . . . . . . . . . . . . . . Secondary . | . . . . . . . . . . . . . . . . . Self-Inflicted Damage 211 | . . 24 . . . 1 . . . . . . . . . 186 Shots 6 | . . 1 . . . 1 . . . . . . . . . 4 Rammed . | . . . . . . . . . . . . . . . . . Targets Rammed 2 | . 1 . . . . . . . . . . 1 . . . . Kicked 2 | . 1 . . . . . . . . . . 1 . . . . Crushed . | . . . . . . . . . . . . . . . . . Highest Temperature 700 | . 255 257 . 271 328 345 144 209 207 128 306 378 461 700 . 212 Average Temperature 109 | . 55 91 . 117 135 123 48 68 81 67 110 113 166 180 . 40 Received Heat Transfer 1527 | . 390 . . . 9 153 120 6 . . 47 101 270 53 . 378 Effects 25 | . . . . . . . . . . . 2 1 3 19 . . Shutdowns 10 | . . . . . . . . . . . . 1 2 7 . . Energy Bleed 2 | . . . . . . . . . . . . . . 2 . . Interference 3 | . . . . . . . . . . . 2 . 1 . . . Matter Decay 3 | . . . . . . . . . . . . . . 3 . . Short Circuit 2 | . . . . . . . . . . . . . . 2 . . Damage (minor) 1 | . . . . . . . . . . . . . . 1 . . Damage (major) 3 | . . . . . . . . . . . . . . 3 . . Damage (core) 1 | . . . . . . . . . . . . . . 1 . . Siege Activations . | . . . . . . . . . . . . . . . . . Robots Corrupted . | . . . . . . . . . . . . . . . . . Combat Hostiles . | . . . . . . . . . . . . . . . . . Parts Fried . | . . . . . . . . . . . . . . . . . Impact Corruptions . | . . . . . . . . . . . . . . . . . Robots Melted 6 | . . . . . . 1 1 . . . 2 . 1 1 . . Combat Hostiles 6 | . . . . . . 1 1 . . . 2 . 1 1 . . Parts Melted 38 | . . . . . . 4 3 . . . 8 10 3 9 . 1 Heat Transferred 11434 | . . . . . 757 2766 1110 185 407 . 1266 1813 1653 1477 . . Parts Sabotaged . | . . . . . . . . . . . . . . . . . Parts Stolen 6 | . . . . . . . . . 2 . . . . 4 . . Parts Stripped . | . . . . . . . . . . . . . . . . . Power Chain Reactions . | . . . . . . . . . . . . . . . . . Alert | -11 -10 -10 -10 -9 -8 -8 -7 -7 -7 -7 -6 -6 -6 -6 -6 -5 ------- Run | Yrd Mat Min Exi Min Mat Sto Fac Low Low Zio Pro Fac Low Low Dat Pro Peak Influence 320 | 10 258 102 . 133 145 156 190 . . . . 320 . . . . Initial 93 | . 6 . . . 7 18 67 . . . . 93 . . . . Average 66 | 7 49 30 . 26 34 63 118 . . . . 187 . . . . Maximum Alert Level 1 | . 1 . . . . . . . . . . 1 . . . . Low Security (%) 90 | 100 95 100 . 100 100 100 100 . . . . 40 . . . . Level 1 9 | . 4 . . . . . . . . . . 59 . . . . Level 2 . | . . . . . . . . . . . . . . . . . Level 3 . | . . . . . . . . . . . . . . . . . Level 4 . | . . . . . . . . . . . . . . . . . Level 5 . | . . . . . . . . . . . . . . . . . High Security . | . . . . . . . . . . . . . . . . . Max Security . | . . . . . . . . . . . . . . . . . Squads Dispatched 16 | . 3 . . . . 3 3 . . . 1 5 . . . 1 Investigation 2 | . 1 . . . . 1 . . . . . . . . . . Extermination 3 | . . . . . . . 1 . . . . 2 . . . . Reinforcement 9 | . 2 . . . . 2 2 . . . . 3 . . . . Assault 2 | . . . . . . . . . . . 1 . . . . 1 Garrison . | . . . . . . . . . . . . . . . . . Intercept . | . . . . . . . . . . . . . . . . . Searches Triggered . | . . . . . . . . . . . . . . . . . Construction Impeded . | . . . . . . . . . . . . . . . . . Haulers Reinforced 1 | . . . . . . . 1 . . . . . . . . . Active Scanning Responses . | . . . . . . . . . . . . . . . . . Cargo Convoy Interrupts . | . . . . . . . . . . . . . . . . . Stealth | -11 -10 -10 -10 -9 -8 -8 -7 -7 -7 -7 -6 -6 -6 -6 -6 -5 --------- Run | Yrd Mat Min Exi Min Mat Sto Fac Low Low Zio Pro Fac Low Low Dat Pro Distress Signals 7 | . 1 . . . 2 1 . . . . . 3 . . . . Communications Jammed . | . . . . . . . . . . . . . . . . . Distress Signals . | . . . . . . . . . . . . . . . . . Times Spotted 166 | . 39 4 . 6 8 17 6 4 2 . 13 26 6 8 . 27 Peak Tracking Total 10 | . 4 3 . 4 3 5 3 3 2 . 10 4 3 4 . 10 Tactical Retreats 9 | . 1 1 . . 1 2 . 1 . . 1 2 . . . . Traps | -11 -10 -10 -10 -9 -8 -8 -7 -7 -7 -7 -6 -6 -6 -6 -6 -5 ------- Run | Yrd Mat Min Exi Min Mat Sto Fac Low Low Zio Pro Fac Low Low Dat Pro Traps Triggered 9 | . 4 . . . 1 2 . . . . . 2 . . . . Indirectly . | . . . . . . . . . . . . . . . . . Trap Hack Attempts . | . . . . . . . . . . . . . . . . . Triggered . | . . . . . . . . . . . . . . . . . Disarmed . | . . . . . . . . . . . . . . . . . Reprogrammed . | . . . . . . . . . . . . . . . . . Reused . | . . . . . . . . . . . . . . . . . Traps Extracted . | . . . . . . . . . . . . . . . . . Installed . | . . . . . . . . . . . . . . . . . Triggered 1 | . . . . . . . . . . . . . . . . 1 Machines | -11 -10 -10 -10 -9 -8 -8 -7 -7 -7 -7 -6 -6 -6 -6 -6 -5 ---------- Run | Yrd Mat Min Exi Min Mat Sto Fac Low Low Zio Pro Fac Low Low Dat Pro Machines Disabled 2 | . . . . . . 1 . . . . . 1 . . . . Max in Single Turn 1 | . . . . . . 1 . . . . . 1 . . . . Garrison Access 1 | . . . . . . . 1 . . . . . . . . . Machines Repaired . | . . . . . . . . . . . . . . . . . Machines Dismantled . | . . . . . . . . . . . . . . . . . Machines Sabotaged . | . . . . . . . . . . . . . . . . . Overloaded Fab Kills . | . . . . . . . . . . . . . . . . . Hacking | -11 -10 -10 -10 -9 -8 -8 -7 -7 -7 -7 -6 -6 -6 -6 -6 -5 --------- Run | Yrd Mat Min Exi Min Mat Sto Fac Low Low Zio Pro Fac Low Low Dat Pro Machines Accessed 24 | . 8 . 2 1 1 4 2 . . . . 1 1 . 4 . Terminals 12 | . 6 . . 1 1 3 1 . . . . . . . . . Fabricators 1 | . . . . . . . . . . . . 1 . . . . Repair Stations 1 | . . . . . . 1 . . . . . . . . . . Recycling Units 2 | . 2 . . . . . . . . . . . . . . . Scanalyzers . | . . . . . . . . . . . . . . . . . Garrison Access 1 | . . . . . . . 1 . . . . . . . . . Total Hacks 82 | . 19 . 2 2 2 15 7 . . . . 4 1 . 30 . Successful 58 | . 7 . 2 1 1 10 5 . . . . 1 1 . 30 . Failed 24 | . 12 . . 1 1 5 2 . . . . 3 . . . . Catastrophic 1 | . . . . . . . . . . . . 1 . . . . Database Lockouts . | . . . . . . . . . . . . . . . . . Manual 33 | . 10 . 1 4 2 4 4 . . . . 8 . . . . Terminals 36 | . 15 . . 2 2 11 6 . . . . . . . . . Fabricators 4 | . . . . . . . . . . . . 4 . . . . Repair Stations 4 | . . . . . . 4 . . . . . . . . . . Recycling Units 4 | . 4 . . . . . . . . . . . . . . . Scanalyzers . | . . . . . . . . . . . . . . . . . Garrison Access 1 | . . . . . . . 1 . . . . . . . . . Terminal Hacks 46 | . 3 . 2 1 1 5 3 . . . . . 1 . 30 . Record 13 | . 1 . 1 . . . . . . . . . . . 11 . Part Schematic 14 | . . . . . . 1 1 . . . . . . . 12 . Robot Schematic 4 | . . . . . . . . . . . . . . . 4 . Robot Analysis 3 | . 1 . . 1 1 . . . . . . . . . . . Prototype ID Bank 4 | . . . . . . 1 . . . . . . . . 3 . Open Door 1 | . . . . . . . . . . . . . 1 . . . Branch Access Points 1 | . . . . . . . 1 . . . . . . . . . Unreport Threat 4 | . 1 . . . . 3 . . . . . . . . . . Registered Components 1 | . . . . . . . 1 . . . . . . . . . Derelict Proto ID Bank 1 | . . . 1 . . . . . . . . . . . . . Fabricator Hacks 1 | . . . . . . . . . . . . 1 . . . . Network Status 1 | . . . . . . . . . . . . 1 . . . . Repair Station Hacks 4 | . . . . . . 4 . . . . . . . . . . Scan Component 2 | . . . . . . 2 . . . . . . . . . . Repair 2 | . . . . . . 2 . . . . . . . . . . Recycling Unit Hacks 2 | . 2 . . . . . . . . . . . . . . . Retrieve Components 2 | . 2 . . . . . . . . . . . . . . . Scanalyzer . | . . . . . . . . . . . . . . . . . Garrison Access Hacks 1 | . . . . . . . 1 . . . . . . . . . Seal Access 1 | . . . . . . . 1 . . . . . . . . . Unauthorized Hacks 4 | . 2 . . . . 1 1 . . . . . . . . . Terminals 3 | . 1 . . . . 1 1 . . . . . . . . . Botnet 3 | . 1 . . . . 1 1 . . . . . . . . . Fabricators . | . . . . . . . . . . . . . . . . . Repair Stations . | . . . . . . . . . . . . . . . . . Recycling Units 1 | . 1 . . . . . . . . . . . . . . . Tunnel 1 | . 1 . . . . . . . . . . . . . . . Scanalyzers . | . . . . . . . . . . . . . . . . . Garrison Access . | . . . . . . . . . . . . . . . . . Data Cores Recovered 1 | . . . . . . 1 . . . . . . . . . . Used . | . . . . . . . . . . . . . . . . . Hacking Detections 15 | . 7 . . 1 1 4 1 . . . . 1 . . . . Full Trace Events 1 | . . . . . . 1 . . . . . . . . . . Feedback Events . | . . . . . . . . . . . . . . . . . Feedback Blocked . | . . . . . . . . . . . . . . . . . Robot Schematics Acquired 4 | . . . . . . . . . . . . . . . 4 . Robots Built . | . . . . . . . . . . . . . . . . . Authchips . | . . . . . . . . . . . . . . . . . Time . | . . . . . . . . . . . . . . . . . Total Robot Build Rating . | . . . . . . . . . . . . . . . . . Part Schematics Acquired 14 | . . . . . . 1 1 . . . . . . . 12 . Parts Built . | . . . . . . . . . . . . . . . . . Authchips . | . . . . . . . . . . . . . . . . . Time . | . . . . . . . . . . . . . . . . . Total Part Build Rating . | . . . . . . . . . . . . . . . . . Parts Repaired 2 | . . . . . . 2 . . . . . . . . . . Time 82 | . . . . . . 82 . . . . . . . . . . Parts Recycled . | . . . . . . . . . . . . . . . . . Recycled Matter . | . . . . . . . . . . . . . . . . . Retrieved Matter . | . . . . . . . . . . . . . . . . . Retrieved Components 10 | . 10 . . . . . . . . . . . . . . . Parts Scanalyzed . | . . . . . . . . . . . . . . . . . Part Schematics Acquired . | . . . . . . . . . . . . . . . . . Parts Damaged . | . . . . . . . . . . . . . . . . . Bothacking | -11 -10 -10 -10 -9 -8 -8 -7 -7 -7 -7 -6 -6 -6 -6 -6 -5 ------------ Run | Yrd Mat Min Exi Min Mat Sto Fac Low Low Zio Pro Fac Low Low Dat Pro Used RIF Installer . | . . . . . . . . . . . . . . . . . Robots Hacked . | . . . . . . . . . . . . . . . . . Non-combat . | . . . . . . . . . . . . . . . . . Combat . | . . . . . . . . . . . . . . . . . Robot Hacks Applied . | . . . . . . . . . . . . . . . . . Relay Couplers Released . | . . . . . . . . . . . . . . . . . Fabnet Peak Effective % . | . . . . . . . . . . . . . . . . . Robots Rewired 2 | . . . . . . . . . . . 2 . . . . . Allies Hacked . | . . . . . . . . . . . . . . . . . Hacks Repelled . | . . . . . . . . . . . . . . . . . Allies | -11 -10 -10 -10 -9 -8 -8 -7 -7 -7 -7 -6 -6 -6 -6 -6 -5 -------- Run | Yrd Mat Min Exi Min Mat Sto Fac Low Low Zio Pro Fac Low Low Dat Pro Total Allies 14 | . . 3 . 1 . . . . . 4 2 3 . . . 1 Largest Group 4 | . . 3 3 4 2 . . . . 4 4 3 . . . 1 Highest-Rated Group 210 | . . 40 40 71 32 . . . . 147 147 210 . . . 96 Highest-Rated Ally 96 | . . 16 16 31 16 . . . . 38 38 70 . . . 96 Zionite Dispatches 1 | . . . . . . . . . . . . 1 . . . . Light 1 | . . . . . . . . . . . . 1 . . . . Total Orders . | . . . . . . . . . . . . . . . . . Ally Attacks 128 | . . . . 19 8 . . . . . 42 52 . . . 7 Total Damage 2858 | . . . . 177 62 . . . . . 1127 1213 . . . 279 Kills 30 | . . . . 7 . . . . . . 8 14 . . . 1 Allies Corrupted . | . . . . . . . . . . . . . . . . . Allies Melted 1 | . . . . . . . . . . . . . . . . 1 Intel | -11 -10 -10 -10 -9 -8 -8 -7 -7 -7 -7 -6 -6 -6 -6 -6 -5 ------- Run | Yrd Mat Min Exi Min Mat Sto Fac Low Low Zio Pro Fac Low Low Dat Pro Robot Analysis Total 3 | . 1 . . 1 1 . . . . . . . . . . . Derelict Logs Recovered 5 | . . . . 2 . . . . . . 1 . 1 1 . . Drone Launches . | . . . . . . . . . . . . . . . . . Drone Recoveries . | . . . . . . . . . . . . . . . . . Zionite Intel Received 2 | . . . . . . . . . . . . 2 . . . . Branch Access 1 | . . . . . . . . . . . . 1 . . . . Unaware Analyses 1 | . . . . . . . . . . . . 1 . . . . Exploration | -11 -10 -10 -10 -9 -8 -8 -7 -7 -7 -7 -6 -6 -6 -6 -6 -5 ------------- Run | Yrd Mat Min Exi Min Mat Sto Fac Low Low Zio Pro Fac Low Low Dat Pro Turns Passed 12845 | 60 1817 687 419 1540 757 970 382 402 605 1304 729 1046 755 699 104 569 Spaces Moved 7110 | 32 955 340 219 575 348 483 206 275 460 974 508 490 522 404 85 234 Core 8 | . . . . . . . . . . . . . . . . 8 Treads . | . . . . . . . . . . . . . . . . . Legs 7102 | 32 955 340 219 575 348 483 206 275 460 974 508 490 522 404 85 226 Wheels . | . . . . . . . . . . . . . . . . . Hover . | . . . . . . . . . . . . . . . . . Flight . | . . . . . . . . . . . . . . . . . Fastest Speed 50 | 120 120 190 190 190 122 130 130 127 127 127 127 127 125 122 123 50 Average Speed 154 | 120 155 190 190 248 189 130 130 127 127 127 127 179 125 130 123 189 Slowest Speed 400 | 120 190 190 190 260 260 130 130 130 127 127 127 197 127 193 123 400 Overloaded Moves . | . . . . . . . . . . . . . . . . . Propulsion Burnouts . | . . . . . . . . . . . . . . . . . Robots Hopped . | . . . . . . . . . . . . . . . . . Cave-ins Triggered 1 | . . . . . . . . . . . . . . 1 . . Exploration Rate (%) 55 | 3 98 65 60 87 37 65 8 51 58 88 67 19 64 55 70 47 Regions Visited 16 Branch Regions 12 Pre-discovered Areas 9 | . 1 1 1 1 . 1 . . . 2 . . . 1 1 . Known Exits Taken 5 | . . . . . 1 . 1 . . . 1 1 1 . . . Unknown Exits Taken 11 | 1 1 1 1 1 . 1 . 1 1 1 . . . 1 1 . Scrap Searched 13 | . . 1 . 2 . . . . 2 4 2 . 1 1 . . Spaces Dug 53 | . . . . . . 24 6 4 2 . . . 3 6 . 8 Terrain Destroyed 360 | . . 21 . . . 32 6 13 2 . . 3 37 16 . 230 Melee 11 | . . . . . . . 6 3 2 . . . . . . . Projectile 26 | . . . . . . . . 1 . . . 3 6 16 . . AOE 323 | . . 21 . . . 32 . 9 . . . . 31 . . 230 Terrain Rammed . | . . . . . . . . . . . . . . . . . Walls Destroyed . | . . . . . . . . . . . . . . . . . Machines Disabled . | . . . . . . . . . . . . . . . . . Actions | -11 -10 -10 -10 -9 -8 -8 -7 -7 -7 -7 -6 -6 -6 -6 -6 -5 --------- Run | Yrd Mat Min Exi Min Mat Sto Fac Low Low Zio Pro Fac Low Low Dat Pro Total 8470 | 40 1171 366 223 691 437 765 279 302 470 1039 561 616 575 523 85 327 Wait 748 | . 107 14 . 109 40 188 16 3 . 49 17 73 9 73 . 50 Move 7093 | 31 954 339 218 574 347 482 205 274 459 973 507 489 521 402 84 234 Hop . | . . . . . . . . . . . . . . . . . Pick Up 63 | 1 12 1 2 1 7 9 5 2 1 6 3 10 1 2 . . Fast Attach 37 | 1 2 . . 2 4 11 7 . 1 . 1 2 5 . . 1 Attach 20 | . 1 . . . 3 1 2 . . . . 2 1 5 . 5 Detach 13 | . 2 . . . . 2 4 . . . . . . . 1 4 Swap 94 | . 10 3 1 1 8 11 6 9 1 8 10 7 11 7 . 1 Drop 88 | . 15 . 2 4 15 13 9 2 2 3 6 11 5 . . 1 Fire 286 | 7 67 9 . . 13 48 16 5 4 . 14 21 22 33 . 27 Melee 22 | . . . . . . . 9 7 2 . . . . . . 4 Ram . | . . . . . . . . . . . . . . . . . Kick 2 | . 1 . . . . . . . . . . 1 . . . . Crush . | . . . . . . . . . . . . . . . . . Escape Stasis 1 | . . . . . . . . . . . . . . 1 . . Rewire 3 | . . . . . . . . . . . 3 . . . . . Trap . | . . . . . . . . . . . . . . . . . Miscellaneous . | . . . . . . . . . . . . . . . . . Route ------- -11/Scrapyard -10/Materials (discovered 4 exits: [*Mat x3] / [*Min]) -10/Mines (discovered 2 exits: [*Mat] / *Exi) -10/Exiles -9/Mines -8/Materials (discovered 2 exits: *Fac / *Sto) -8/Storage (discovered 2 exits: *Fac / [*Rec]) -7/Factory (discovered 2 exits: *Low x2) -7/Lower Caves -7/Lower Caves -7/Zion -6/Proximity Caves -6/Factory (discovered 4 exits: [*Fac x2] / *Low x2) -6/Lower Caves -6/Lower Caves -6/Data Miner -5/Proximity Caves History --------- Turn | Location | Event 1 | -11/Scrapyard | Discovered new exit (range 3) 61 | -11/Scrapyard | Entered Materials 309 | -10/Materials | Build established: Mutant 581 | -10/Materials | Discovered new exit (range 10) 785 | -10/Materials | Discovered new exit (range 8) 1039 | -10/Materials | Core integrity fell below 50% 1087 | -10/Materials | Discovered new exit (range 13) 1164 | -10/Materials | Discovered new exit (range 8) 1878 | -10/Materials | Entered Mines 2191 | -10/Mines | Learned location of Storage (-8) 2231 | -10/Mines | Deemed a non-threat by the Exiles lab entrance 2231 | -10/Mines | Discovered new exit (range 5) 2419 | -10/Mines | Discovered new exit (range 7) 2433 | -10/Mines | Assisted by bots powering up and referring to "LRC-V3" 2565 | -10/Mines | Entered Exiles 2565 | -10/Exiles | Accompanied by 3 allies 2609 | -10/Exiles | Met 8R-AWN 2645 | -10/Exiles | Met EX-HEX 2695 | -10/Exiles | Met EX-BIN 2719 | -10/Exiles | Aligned with FarCom system 2721 | -10/Exiles | Given EX-Vault access code 2767 | -10/Exiles | Opened EX-Vault 2781 | -10/Exiles | Found Gui. Plasma Cannon 2787 | -10/Exiles | Found Skeleton Box 2828 | -10/Exiles | Warned to stay clear of 0b10 Research branches 2889 | -10/Exiles | Met EX-DEC 2901 | -10/Exiles | Learned location of Zion (-7) 2965 | -10/Exiles | Discovered new exit (range 12) 2984 | -10/Exiles | Stole two prototypes: Gui. Plasma Cannon, Skeleton Box 2984 | -10/Exiles | Entered Mines 2984 | -9/Mines | Accompanied by 3 allies 2987 | -9/Mines | Received a Mining Laser from a helpful Derelict 3334 | -9/Mines | Received a Rocket Launcher from a helpful Derelict 3634 | -9/Mines | Assembled infested the area 3639 | -9/Mines | Assisted by a Guerilla fighting off Assembled 4459 | -9/Mines | Discovered new exit (range 12) 4524 | -9/Mines | Entered Materials 4524 | -8/Materials | Accompanied by 2 allies 4524 | -8/Materials | Evolved 4 slots: Propulsion x2, Utility x2 4525 | -8/Materials | Identified exit to Storage 4831 | -8/Materials | Build established: Scavenger-Mutant 5128 | -8/Materials | Discovered new exit (range 3) 5281 | -8/Materials | Entered Storage 5465 | -8/Storage | Build established: Mutant 5481 | -8/Storage | Learned location of Armory (-4) 5510 | -8/Storage | Remotely autohacked Sealed Heavy Doors 5711 | -8/Storage | Remotely autohacked Sealed Heavy Doors 5866 | -8/Storage | Remotely autohacked Sealed Blast Doors 5866 | -8/Storage | Discovered new exit (range 7) 6001 | -8/Storage | Repaired Imp. Titanium Leg 6040 | -8/Storage | Repaired Katana 6182 | -8/Storage | Discovered new exit (range 15) 6251 | -8/Storage | Entered Factory 6251 | -7/Factory | Evolved 2 slots: Utility x1, Weapon x1 6253 | -7/Factory | FarCom data flow suspended 6302 | -7/Factory | Identified exit to Lower Caves 6597 | -7/Factory | Build established: Hacker-Mutant 6633 | -7/Factory | Entered Lower Caves 6896 | -7/Lower Caves | Spotted B-75 Beast 7019 | -7/Lower Caves | Discovered new exit (range 13) 7035 | -7/Lower Caves | Entered another Lower Caves area 7188 | -7/Lower Caves | Build established: Mutant 7262 | -7/Lower Caves | Spotted 9Q-55Z(f) 7262 | -7/Lower Caves | Spotted SX-9F6(f) 7263 | -7/Lower Caves | Encountered a Master Thief 7263 | -7/Lower Caves | Encountered a Master Thief 7264 | -7/Lower Caves | Gui. Plasma Cannon stolen by Master Thief 7266 | -7/Lower Caves | Skeleton Box stolen by Master Thief 7284 | -7/Lower Caves | Discovered new exit (range 9) 7504 | -7/Lower Caves | Spotted B-75 Beast 7549 | -7/Lower Caves | Build established: Tank 7640 | -7/Lower Caves | Entered Zion 7712 | -7/Zion | Discovered new exit (range 15) 7776 | -7/Zion | System corruption cleaned by Quarantine Array 7802 | -7/Zion | Learned location of Warlord (-5) 8282 | -7/Zion | Received a hallucinogenic algorithm 8592 | -7/Zion | Visited the Megawrench Repair Shop 8592 | -7/Zion | Megawrench repaired 12 parts 8648 | -7/Zion | Imprinted 8650 | -7/Zion | Declared Zion's savior 8944 | -7/Zion | Entered Proximity Caves 8944 | -6/Proximity Caves | Accompanied by 4 allies 9034 | -6/Proximity Caves | Attracted the attention of an 0b10 outpost 9271 | -6/Proximity Caves | Identified exit to Factory 9615 | -6/Proximity Caves | Spotted B-75 Beast 9673 | -6/Proximity Caves | Entered Factory 9673 | -6/Factory | Accompanied by 3 allies 9673 | -6/Factory | Evolved 2 slots: Power x1, Utility x1 9796 | -6/Factory | Retrieved Zion intel report: Branch Access 9796 | -6/Factory | Identified exit to Lower Caves 9998 | -6/Factory | Discovered new exit (range 16) 10116 | -6/Factory | Retrieved Zion intel report: Unaware Analyses 10117 | -6/Factory | Zion Light squad teleported in 10389 | -6/Factory | Build established: Scavenger-Tank 10520 | -6/Factory | Discovered new exit (range 6) 10574 | -6/Factory | Found Prototype Protection 10574 | -6/Factory | Identified Zio. Weapon Casing 10719 | -6/Factory | Entered Lower Caves 11043 | -6/Lower Caves | Identified exit to Lower Caves 11225 | -6/Lower Caves | Lost 3 parts (3u) 11474 | -6/Lower Caves | Entered another Lower Caves area 11844 | -6/Lower Caves | Crushed by falling debris 11845 | -6/Lower Caves | System corruption reached 10% 11875 | -6/Lower Caves | Lost 3 parts (2u1w) 12091 | -6/Lower Caves | Spotted TB-7Q8(f) 12091 | -6/Lower Caves | Spotted PI-WVN(f) 12093 | -6/Lower Caves | Encountered a Master Thief 12093 | -6/Lower Caves | Encountered a Master Thief 12093 | -6/Lower Caves | Spotted YP-N67(f) 12094 | -6/Lower Caves | Encountered a Master Thief 12094 | -6/Lower Caves | Spotted KJ-5RV(f) 12095 | -6/Lower Caves | Encountered a Master Thief 12096 | -6/Lower Caves | Wave Gun stolen by Master Thief 12096 | -6/Lower Caves | Adv. Heat Sink stolen by Master Thief 12096 | -6/Lower Caves | Plasma Rifle stolen by Master Thief 12097 | -6/Lower Caves | Phase Cannon stolen by Master Thief 12142 | -6/Lower Caves | Discovered new exit (range 8) 12173 | -6/Lower Caves | Entered Data Miner 12174 | -6/Data Miner | Discovered new exit (range 6) 12197 | -6/Data Miner | Met Data Miner 12222 | -6/Data Miner | Learned location of Section 7 (-2) 12222 | -6/Data Miner | Acquired the access code to Warlord's prototype stash 12242 | -6/Data Miner | Received God Mode back door access code from Data Miner 12277 | -6/Data Miner | Entered Proximity Caves 12465 | -5/Proximity Caves | Build established: Mutant 12562 | -5/Proximity Caves | Destroyed 7 combat bots 12577 | -5/Proximity Caves | Attracted the attention of an 0b10 checkpoint 12583 | -5/Proximity Caves | Escorted by Enhanced Grunt 12804 | -5/Proximity Caves | Core integrity fell below 50% 12806 | -5/Proximity Caves | Attracted the attention of an 0b10 outpost 12839 | -5/Proximity Caves | Core integrity fell below 20% 12846 | -5/Proximity Caves | Destroyed by G-50 Soldier with Heavy Laser Last Messages --------------- 12837_ Acquired 28 matter. 12837_ The unstable cave ceiling collapses. 12837_ C-30 ARC bursts open, deploying its payload. 12837_ G-67 Veteran unfolds itself. 12837_ L-41 Fighter unfolds itself. 12837_ G-50 Soldier unfolds itself. 12837_ L-41 Fighter unfolds itself. 12837_ I-47 Archangel unfolds itself. 12838_ Acquired 79 matter. 12838_ The unstable cave ceiling collapses. 12838_ Critical hit (Burn: +37). 12840_ Lrn. Tractor Beam destroyed. 12840_ Destroyed Lrn. Tractor Beam. 12840_ Destroyed Imp. Medium Armor Plating. 12840_ B-60 Warrior destroyed. 12840_ Destroyed Adv. Heat Sink. 12840_ Prc. Rocket Launcher destroyed. 12842_ Dropped Lrg. Storage Unit. 12845_ System corrupted: Energy discharge (-35). 12846_ The unstable cave ceiling collapses. Map ----- +----------------------------------------------------+ | ?????????????????????????????????????????????????? | | ?????????????????????????????????????????????????? | | ?????????????????????????????????????????????????? | | ?????????????????????????????????????????????????? | | ?????????????????????????????????????????????????? | | ?????????????????????????????????????????????????? | | ?????????????????????????????????????????????????? | | ?????????????????????????????????????????????????? | | ?????????????????????????????????????????????????? | | ?????????????????????????????????????????????????? | | ?????????????????????????????????????????????????? | | ?????????????????????????????????????????????????? | | ?????????????????????????????????????????????????? | | #????????????????????????????????????????????????? | | ???###?#####???????????????????????????????????? | | ?## # # #??????????????????????????????????? | | ?# ###??#????????????????????????????? | | ## # ## ????????????????????????????? | | # # # ###??????????????????????????? | | # ##?????????????????????????? | | " # # #?????????????????????????? | | " ##????????????????????????? | | #"# ###??????????????????????? | | ## %[ #??????????????????????? | | # !!ll ## #???????????????????? | | !! g g@ #???????????????????? | | # i #???????????????????? | | ##?## # ##???????????????????? | | ##??# # #????????????????????? | | # ####? # ##? ????????????????????? | | ## ##??? ########???#???????????????????? | | ?# #???? ####??????????????????????????????? | | ?## ##??? #??????????????????????????????????? | | ??####???## #???????????????????????????????????? | | ??????????###????????????????????????????????????? | | ?????????????????????????????????????????????????? | | ?????????????????????????????????????????????????? | | ?????????????????????????????????????????????????? | | ?????????????????????????????????????????????????? | | ?????????????????????????????????????????????????? | | ?????????????????????????????????????????????????? | | ?????????????????????????????????????????????????? | | ?????????????????????????????????????????????????? | | ?????????????????????????????????????????????????? | | ?????????????????????????????????????????????????? | | ?????????????????????????????????????????????????? | | ?????????????????????????????????????????????????? | | ?????????????????????????????????????????????????? | | ?????????????????????????????????????????????????? | | ?????????????????????????????????????????????????? | +----------------------------------------------------+ Best States ------------- Heat Dissipation 75 Energy Generation 29 Energy Capacity 500 Matter Stores 300 Matter Capacity 300 Sight Range 16 Robot Scan Range 15 Terrain Scan Density 10 Jamming Range 12 Armor Coverage 475 Resistance: KI 30 Weapon Shielding 100 Evasion (%) 55 Particle Charging 20 Offensive Hacking 20 Item Schematics ----------------- Adv. Sensor Array | -8/Storage | Hacked Imp. Shield Generator | -7/Factory | Hacked Combat Drone Bay | -6/Data Miner | Free Lgt. Regenerative Plating | -6/Data Miner | Free Enh. Flexi-carbon Leg | -6/Data Miner | Free Prc. Matter Filter | -6/Data Miner | Free Tesla Bomb Launcher | -6/Data Miner | Free Centrium Wheel | -6/Data Miner | Free Imp. Phase Shifter | -6/Data Miner | Free HERF Cannon | -6/Data Miner | Free Hardcell Cannon | -6/Data Miner | Free Hvy. Gauss Cannon | -6/Data Miner | Free Cmb. Antigrav System | -6/Data Miner | Free Com. HERF Cannon | -6/Data Miner | Free Robot Schematics ------------------ R-10 Processor | -6/Data Miner | Free B-60 Warrior | -6/Data Miner | Free G-50 Soldier | -6/Data Miner | Free G-67 Veteran | -6/Data Miner | Free Fabricated ------------ Nothing Alien Tech Used ----------------- None Achievements -------------- None Challenges ------------ None Game ------ Seed CoordinationRecoilPick Manual? 0 Play Time 01:27:38 Cumulative 161.9 hours Start 2024.04.30 @ 19:19:01 End 2024.04.30 @ 20:49:10 Sessions 1 Manual Loads 0 Difficulty Rogue Special Mode None Game No. 141 Rogue 141 Adventurer 0 Explorer 0 Win Type - Total 3 Types 2/0/0/1/0/0/0/0/0 Lore% 57 Gallery% 75 Achievement% 57 Wizard Run 0 Options --------- Layout 2 ASCII 0 Keyboard 1 Movement Numpad Keybinds 0 Fullscreen 1 Font 32/SmallcapsGlow Map View 77x44 Zoom Use 0% Tactical HUD 1 Map Filters NONE Filters NONE Steam 1 RUN: cb92399f-faf2-4171-9ce4-c6cfbcc9a3dc